bitfinex/quotes_SOLUSD_20241126
["timestamp","ask_amount","ask_price","bid_price","bid_amount"]
[1732602668376,23.776884,239.8,239.73,4.1713]
[1732602668377,23.776884,239.8,239.78,7.96711509]
[1732602668857,23.776884,239.82,239.78,7.96711509]
[1732602674181,27.946584,239.82,239.76,7.96711509]
[1732602675870,27.946584,239.82,239.78,7.96711509]
[1732602676063,23.776884,239.82,239.78,7.96711509]
[1732602676988,27.946684,239.82,239.78,7.96711509]
[1732602677160,27.946684,239.82,239.74,20.7611]
[1732602677371,27.946684,239.82,239.76,7.96711509]
[1732602678266,23.776884,239.78,239.68,20.2796]
[1732602678462,23.776884,239.78,239.7,7.96711509]
[1732602679291,27.947384,239.78,239.72,7.96711509]
[1732602679577,20.0,239.75,239.7,7.96711509]
[1732602679784,20.0,239.75,239.68,24.07471509]
[1732602679785,23.776884,239.74,239.68,24.07471509]
[1732602679973,23.776884,239.74,239.68,16.1076]
[1732602680182,23.776884,239.7,239.65,7.96711509]
[1732602680379,23.776884,239.7,239.63,16.1076]
[1732602680597,23.776884,239.66,239.63,16.1076]
[1732602680969,23.776884,239.66,239.62,7.96711509]
[1732602681167,23.776884,239.66,239.6,7.96711509]
[1732602683375,23.776884,239.67,239.6,7.96711509]
[1732602685088,23.776884,239.67,239.55,7.96711509]
[1732602685089,23.776884,239.62,239.55,7.96711509]
[1732602685790,23.776884,239.62,239.54,7.96711509]
[1732602685987,23.776884,239.58,239.54,7.96711509]
[1732602686187,23.776884,239.62,239.48,26.6304]
[1732602686495,23.776884,239.62,239.53,7.96711509]
[1732602686496,23.776884,239.6,239.53,7.96711509]
[1732602686884,27.950484,239.6,239.53,7.96711509]
[1732602687896,162.450484,239.6,239.53,7.96711509]
[1732602688371,7.96711509,239.59,239.51,7.96711509]
[1732602688572,23.776884,239.54,239.53,7.96711509]
[1732602688909,23.776884,239.54,239.51,7.96711509]
[1732602690574,20.0,239.56,239.53,7.96711509]
[1732602690795,20.0,239.56,239.55,7.96711509]
[1732602690975,43.776884,239.56,239.55,7.96711509]
[1732602692208,23.776884,239.55,239.52,7.96711509]
[1732602692576,23.776884,239.55,239.49,4.1755]
[1732602692791,23.776884,239.55,239.52,7.96711509]
[1732602693384,23.776884,239.55,239.48,16.1076]
[1732602693597,158.276884,239.55,239.5,7.96711509]
[1732602694203,162.451484,239.55,239.48,7.96711509]
[1732602695691,162.451484,239.55,239.46,4.176]
[1732602695889,23.776884,239.53,239.48,7.96711509]
[1732602697303,23.776884,239.49,239.43,15.3645]
[1732602697613,158.276884,239.49,239.43,7.96711509]
[1732602697818,158.276884,239.49,239.41,12.14391509]
[1732602698009,158.276884,239.49,239.43,7.96711509]
[1732602698814,162.452384,239.49,239.43,7.96711509]
[1732602700301,23.776884,239.44,239.3,10.4467]
[1732602700502,23.776884,239.44,239.36,7.96711509]
[1732602701094,23.776884,239.44,239.39,7.96711509]
[1732602701418,23.776884,239.42,239.39,7.96711509]
[1732602702390,23.776884,239.42,239.39,12.38210478]
[1732602702792,23.776884,239.42,239.37,16.55960478]
[1732602703293,23.776884,239.42,239.37,12.38210478]
[1732602703496,27.953284,239.44,239.37,12.38210478]
[1732602703819,27.953284,239.44,239.36,12.38210478]
[1732602703992,12.38210478,239.43,239.36,12.38210478]
[1732602704315,12.38210478,239.43,239.34,12.38210478]
[1732602704316,23.776884,239.42,239.34,12.38210478]
[1732602704689,36.15898878,239.41,239.32,12.38210478]
[1732602705690,36.15898878,239.41,239.3,12.38210478]
[1732602706308,40.33588878,239.41,239.3,12.38210478]
[1732602707501,40.33588878,239.41,239.32,12.38210478]
[1732602707719,23.776884,239.41,239.34,12.38210478]
[1732602707922,23.776884,239.41,239.36,12.38210478]
[1732602708513,12.38210478,239.43,239.36,16.55980478]
[1732602708726,20.0,239.41,239.38,12.38210478]
[1732602709094,134.5,239.45,239.4,12.58680018]
[1732602709406,134.5,239.45,239.4,0.2046954]
[1732602709610,138.6762,239.45,239.4,0.2046954]
[1732602710005,23.776884,239.44,239.4,0.2046954]
[1732602710404,43.776884,239.41,239.4,0.2046954]
[1732602711820,47.953784,239.41,239.4,0.2046954]
[1732602720108,43.776884,239.41,239.4,0.2046954]
[1732602720309,4.1763,239.45,239.4,12.58680018]
[1732602720518,4.1763,239.45,239.42,12.38210478]
[1732602721501,23.776884,239.44,239.42,12.38210478]
[1732602722219,27.953284,239.44,239.42,12.38210478]
[1732602725200,20.0,239.41,239.4,12.58680018]
[1732602725528,43.776884,239.41,239.4,12.58680018]
[1732602726433,43.776884,239.41,239.4,0.2046954]
[1732602727410,47.953784,239.41,239.4,0.2046954]
[1732602728011,60.33588878,239.41,239.4,0.2046954]
[1732602728525,55.88232013,239.41,239.4,0.2046954]
[1732602730409,47.953784,239.41,239.4,0.2046954]
[1732602731122,60.34196821,239.41,239.4,0.2046954]
[1732602731619,130.34196821,239.41,239.4,0.2046954]
[1732602731804,20.0,239.32,239.26,0.1725734]
[1732602732006,20.0,239.29,239.26,12.56075761]
[1732602732233,10.59392421,239.4,239.28,12.38818421]
[1732602732429,20.0,239.37,239.33,12.38818421]
[1732602732836,20.0,239.36,239.33,12.38818421]
[1732602734043,23.776884,239.35,239.33,12.38818421]
[1732602736042,27.954884,239.35,239.3,12.38818421]
[1732602736457,23.776884,239.31,239.28,12.38818421]
[1732602737328,43.776884,239.29,239.28,12.38818421]
[1732602737843,23.776884,239.28,239.26,12.56075761]
[1732602744049,27.956084,239.28,239.26,0.1725734]
[1732602744624,134.5,239.27,239.26,0.1725734]
[1732602744925,158.276884,239.27,239.26,0.1725734]
[1732602746345,162.456184,239.27,239.26,0.1725734]
[1732602749730,27.956184,239.27,239.26,0.1725734]
[1732602753245,97.956184,239.27,239.26,0.1725734]
[1732602753551,27.956184,239.27,239.26,0.1725734]
[1732602753856,23.776884,239.27,239.26,0.1725734]
[1732602754530,27.956184,239.27,239.26,0.1725734]
[1732602765261,102.74574806,239.27,239.26,0.1725734]
[1732602768449,20.0,239.24,239.16,0.4959886]
[1732602768654,23.776884,239.22,239.19,7.93602172]
[1732602768838,20.0,239.2,239.19,7.93602172]
[1732602769036,43.776884,239.2,239.19,7.93602172]
[1732602769945,23.776884,239.19,239.17,7.93602172]
[1732602771669,23.776884,239.19,239.16,0.4959886]
[1732602771842,23.776884,239.19,239.17,7.93602172]
[1732602773339,43.776884,239.17,239.16,0.4959886]
[1732602774740,47.957984,239.17,239.16,0.4959886]
[1732602780757,52.74754806,239.17,239.16,0.4959886]
[1732602788687,47.957984,239.17,239.16,0.4959886]
[1732602790081,20.0,239.17,239.16,8.43201032]
[1732602790288,134.5,239.23,239.16,23.61281032]
[1732602790588,4.1793,239.27,239.22,7.93602172]
[1732602790788,134.5,239.26,239.22,7.93602172]
[1732602791766,20.0,239.23,239.22,7.93602172]
[1732602791963,43.776884,239.23,239.22,7.93602172]
[1732602792391,23.776884,239.23,239.22,7.93602172]
[1732602792593,10.27152421,239.3,239.22,7.93602172]
[1732602792887,4.1788,239.3,239.27,7.93602172]
[1732602793094,4.1786,239.32,239.29,7.93602172]
[1732602793384,138.6782,239.34,239.31,7.93602172]
[1732602793594,138.6782,239.34,239.3,7.93602172]
[1732602794093,138.6783,239.33,239.3,7.93602172]
[1732602795388,20.0,239.29,239.23,4.1799]
[1732602795583,20.0,239.29,239.28,7.93602172]
[1732602795893,20.0,239.29,239.23,4.1799]
[1732602796073,20.0,239.29,239.28,7.93602172]
[1732602797086,134.5,239.33,239.28,7.93602172]
[1732602797266,20.0,239.3,239.26,6.3792]
[1732602797689,134.5,239.33,239.26,6.3792]
[1732602797879,4.1782,239.34,239.31,7.93602172]
[1732602798380,27.954284,239.38,239.31,7.93602172]
[1732602798584,31.71290572,239.36,239.28,7.93602172]
[1732602798775,20.0,239.33,239.28,7.93602172]
[1732602799093,43.776884,239.32,239.3,7.93602172]
[1732602800090,43.776884,239.32,239.31,7.93602172]
[1732602802403,134.5,239.4,239.31,7.93602172]
[1732602802702,91.4,239.48,239.31,7.93602172]
[1732602802703,138.6769,239.41,239.38,7.93602172]
[1732602802869,4.1766,239.43,239.4,7.93602172]
[1732602804902,43.776884,239.42,239.4,7.93602172]
[1732602806902,47.953784,239.41,239.4,7.93602172]
[1732602807283,23.776884,239.4,239.31,4.1785]
[1732602807483,23.776884,239.4,239.39,7.93602172]
[1732602807992,23.776884,239.4,239.31,4.1785]
[1732602808175,23.776884,239.4,239.29,15.3952]
[1732602808176,20.0,239.37,239.35,7.93602172]
[1732602808381,23.776884,239.36,239.35,7.93602172]
[1732602810479,23.776884,239.36,239.29,19.574]
[1732602810795,23.776884,239.36,239.35,7.93602172]
[1732602811578,4.1774,239.39,239.35,7.93602172]
[1732602811805,23.776884,239.38,239.31,4.1786]
[1732602812700,23.776884,239.38,239.37,7.93602172]
[1732602814507,23.776884,239.38,239.3,4.1788]
[1732602814692,23.776884,239.38,239.37,7.93602172]
[1732602815396,23.776884,239.38,239.31,4.1786]
[1732602815581,23.776884,239.38,239.37,7.93602172]
[1732602815784,27.954284,239.38,239.37,7.93602172]
[1732602817384,23.776884,239.38,239.37,7.93602172]
[1732602819691,27.954284,239.38,239.37,7.93602172]
[1732602820112,27.954284,239.38,239.35,7.93602172]
[1732602820412,43.776884,239.36,239.35,7.93602172]
[1732602822921,23.776884,239.35,239.3,4.1787]
[1732602823121,23.776884,239.35,239.34,7.93602172]
[1732602825314,20.0,239.36,239.34,7.93602172]
[1732602825801,20.0,239.37,239.34,7.93602172]
[1732602826001,43.776884,239.37,239.36,7.93602172]
[1732602828614,43.776884,239.37,239.31,4.1786]
[1732602828800,43.776884,239.37,239.36,7.93602172]
[1732602831423,134.5,239.47,239.36,7.93602172]
[1732602831610,138.6762,239.46,239.45,7.93602172]
[1732602831799,4.1762,239.46,239.45,7.93602172]
[1732602832806,24.1762,239.46,239.45,7.93602172]
[1732602833628,47.953084,239.46,239.45,7.93602172]
[1732602835610,23.776884,239.45,239.38,16.0936]
[1732602835813,23.776884,239.45,239.38,20.271]
[1732602835814,20.0,239.42,239.38,20.271]
[1732602837221,20.0,239.42,239.38,16.0936]
[1732602838711,20.0,239.42,239.41,7.93602172]
[1732602839627,47.953584,239.42,239.41,7.93602172]
[1732602839823,43.776884,239.42,239.41,7.93602172]
[1732602841130,20.0,239.42,239.41,7.93602172]
[1732602843805,134.5,239.54,239.41,7.93602172]
[1732602844022,138.6748,239.53,239.5,7.93602172]
[1732602844221,134.5,239.52,239.5,7.93602172]
[1732602845133,23.776884,239.51,239.5,7.93602172]
[1732602845528,134.5,239.57,239.5,7.93602172]
[1732602845838,134.5,239.57,239.56,7.93602172]
[1732602847123,158.276884,239.57,239.56,7.93602172]
[1732602848032,43.776884,239.55,239.54,7.93602172]
[1732602848611,43.776884,239.54,239.5,7.93602172]
[1732602848821,23.776884,239.52,239.46,15.1909]
[1732602849057,23.776884,239.52,239.5,7.93602172]
[1732602849334,23.776884,239.54,239.5,7.93602172]
[1732602849515,23.776884,239.54,239.53,7.93602172]
[1732602852145,23.776884,239.54,239.46,51.11088688]
[1732602852330,23.776884,239.54,239.52,7.93602172]
[1732602856126,134.5,239.55,239.52,12.11092172]
[1732602856322,134.5,239.55,239.54,7.93602172]
[1732602857134,20.0,239.57,239.54,7.93602172]
[1732602857434,23.776884,239.56,239.54,12.11062172]
[1732602857741,23.776884,239.56,239.55,7.93602172]
[1732602858524,23.776884,239.56,239.47,4.1758]
[1732602858724,23.776884,239.56,239.54,7.93602172]
[1732602867630,20.0,239.61,239.54,12.11062172]
[1732602867823,20.0,239.61,239.6,7.93602172]
[1732602868445,134.5,239.67,239.6,7.93602172]
[1732602868624,134.5,239.66,239.64,7.93602172]
[1732602869443,138.6726,239.66,239.64,7.93602172]
[1732602870029,23.776884,239.65,239.64,7.93602172]
[1732602870732,23.776884,239.61,239.57,4.1741]
[1732602870934,23.776884,239.61,239.6,7.93602172]
[1732602875136,20.0,239.62,239.6,7.93602172]
[1732602875950,4.1729,239.64,239.6,7.93602172]
[1732602876251,20.0,239.6,239.56,20.7153]
[1732602880057,20.0,239.6,239.59,7.93602172]
[1732602881755,134.5,239.68,239.59,39.6801086]
[1732602881756,23.776884,239.65,239.59,39.6801086]
[1732602881949,158.276884,239.65,239.64,7.93602172]
[1732602884335,162.449584,239.65,239.64,7.93602172]
[1732602884736,162.449584,239.65,239.56,20.7151]
[1732602884935,20.0,239.62,239.56,20.7151]
[1732602885138,43.776884,239.62,239.61,7.93602172]
[1732602892271,43.776884,239.62,239.53,6.1614]
[1732602892477,43.776884,239.62,239.61,7.93602172]
[1732602892773,23.776884,239.61,239.59,7.93602172]
[1732602893178,23.776884,239.61,239.54,4.1746]
[1732602893556,23.776884,239.61,239.59,7.93602172]
[1732602896163,20.0,239.58,239.51,15.2388]
[1732602896356,23.776884,239.57,239.55,7.93602172]
[1732602896552,23.776884,239.57,239.54,7.93602172]
[1732602896773,23.776884,239.57,239.55,7.93602172]
[1732602897578,23.776884,239.57,239.51,19.4138]
[1732602897755,23.776884,239.57,239.54,7.93602172]
[1732602898369,20.0,239.54,239.5,4.1753]
[1732602898655,23.776884,239.53,239.52,7.93602172]
[1732602899866,23.776884,239.53,239.47,6.1762]
[1732602900072,23.776884,239.53,239.51,7.93602172]
[1732602900272,23.776884,239.53,239.47,10.3519]
[1732602900273,23.776884,239.53,239.52,7.93602172]
[1732602905783,23.776884,239.53,239.48,4.1757]
[1732602905972,23.776884,239.53,239.23,4.182]
[1732602905973,20.0,239.5,239.49,7.93602172]
[1732602906176,43.776884,239.5,239.49,7.93602172]
[1732602906372,43.776884,239.5,239.46,4.176]
[1732602906677,23.776884,239.49,239.48,7.93602172]
[1732602910475,23.776884,239.49,239.41,6.1762]
[1732602910677,23.776884,239.45,239.44,7.93602172]
[1732602910860,20.0,239.42,239.36,10.3538]
[1732602911069,43.776884,239.42,239.41,7.93602172]
[1732602913778,134.5,239.48,239.41,12.11292172]
[1732602913978,138.6751,239.51,239.47,7.93602172]
[1732602914175,134.5,239.5,239.49,7.93602172]
[1732602915198,158.276884,239.5,239.49,7.93602172]
[1732602916997,23.776884,239.5,239.49,7.93602172]
[1732602917292,23.58325813,239.59,239.49,7.93602172]
[1732602917293,138.6743,239.56,239.49,7.93602172]
[1732602917468,134.5,239.55,239.53,7.93602172]
[1732602917673,134.5,239.55,239.51,7.93602172]
[1732602917880,134.5,239.55,239.43,4.1765]
[1732602918187,134.5,239.54,239.5,7.93602172]
[1732602918380,20.0,239.51,239.5,7.93602172]
[1732602919088,43.776884,239.51,239.5,7.93602172]
[1732602921303,23.776884,239.5,239.43,4.1765]
[1732602921598,23.776884,239.5,239.49,7.93602172]
[1732602924895,20.0,239.54,239.49,12.11152172]
[1732602925086,20.0,239.54,239.53,7.93602172]
[1732602925797,134.5,239.59,239.53,7.93602172]
[1732602926002,134.5,239.59,239.51,15.5966]
[1732602926003,134.5,239.61,239.58,7.93602172]
[1732602926295,134.5,239.67,239.6,7.93602172]
[1732602926498,134.5,239.66,239.64,7.93602172]
[1732602926798,134.5,239.67,239.65,7.93602172]
[1732602926989,134.5,239.68,239.65,7.93602172]
[1732602927387,134.5,239.68,239.63,7.93602172]
[1732602927388,138.6722,239.68,239.63,7.93602172]
[1732602928180,20.0,239.65,239.55,4.1744]
[1732602928389,20.0,239.65,239.61,7.93602172]
[1732602928591,134.5,239.64,239.59,7.93602172]
[1732602928985,23.776884,239.63,239.59,7.93602172]
[1732602929296,27.949984,239.63,239.59,7.93602172]
[1732602930306,43.776884,239.6,239.59,7.93602172]
[1732602933184,134.5,239.62,239.59,7.93602172]
[1732602933385,20.0,239.66,239.61,7.93602172]
[1732602933613,20.0,239.64,239.63,7.93602172]
[1732602935381,43.776884,239.64,239.63,7.93602172]
[1732602937398,47.949784,239.64,239.56,4.1742]
[1732602937600,23.776884,239.63,239.59,7.93602172]
[1732602937901,20.0,239.6,239.53,4.1748]
[1732602938107,23.776884,239.59,239.53,4.1748]
[1732602938400,43.776884,239.6,239.59,7.93602172]
[1732602941405,23.776884,239.6,239.59,7.93602172]
[1732602942605,23.776884,239.59,239.56,7.93602172]
[1732602942777,23.776884,239.59,239.58,7.93602172]
[1732602942981,23.776884,239.59,239.56,7.93602172]
[1732602945587,20.0,239.53,239.46,21.9444]
[1732602945912,23.776884,239.52,239.49,7.93602172]
[1732602946080,23.776884,239.52,239.4,21.9444]
[1732602946281,23.776884,239.5,239.46,7.93602172]
[1732602946508,158.276884,239.5,239.44,7.93602172]
[1732602946883,23.776884,239.46,239.44,7.93602172]
[1732602948511,23.776884,239.46,239.4,15.3009]
[1732602948687,23.776884,239.46,239.38,7.93602172]
[1732602948688,23.776884,239.42,239.38,7.93602172]
[1732602952412,23.776884,239.38,239.28,22.0133]
[1732602952722,23.776884,239.38,239.34,7.93602172]
[1732602958517,27.954284,239.38,239.34,7.93602172]
[1732602958897,23.776884,239.38,239.34,7.93602172]
[1732602960825,23.776884,239.38,239.36,7.93602172]
[1732602963709,23.776884,239.38,239.34,7.93602172]
[1732602965525,23.776884,239.38,239.28,22.0133]
[1732602965725,27.954284,239.38,239.29,4.1788]
[1732602965917,27.954284,239.38,239.33,7.93602172]
[1732602966121,134.5,239.37,239.33,7.93602172]
[1732602966324,23.776884,239.36,239.33,7.93602172]
[1732602967927,23.776884,239.36,239.28,26.1924]
[1732602967928,23.776884,239.33,239.28,22.0133]
[1732602968226,23.776884,239.3,239.18,16.3764]
[1732602968531,23.776884,239.26,239.19,4.1807]
[1732602968741,23.776884,239.26,239.23,7.93602172]
[1732602969238,23.776884,239.26,239.21,7.93602172]
[1732602969447,23.776884,239.2,239.16,0.4959886]
[1732602969726,23.776884,239.2,239.16,8.43201032]
[1732602969931,23.776884,239.19,239.18,7.93602172]
[1732602971434,134.5,239.27,239.18,7.93602172]
[1732602971637,23.776884,239.26,239.25,7.93602172]
[1732602974225,23.776884,239.26,239.19,4.1807]
[1732602974429,23.776884,239.26,239.24,12.39869261]
[1732602975319,27.956484,239.26,239.2,12.39869261]
[1732602975513,27.956484,239.26,239.22,12.39869261]
[1732602976024,27.956484,239.26,239.2,12.39869261]
[1732602976217,27.956484,239.26,239.16,4.6771886]
[1732602976218,4.1804,239.21,239.16,0.4959886]
[1732602976416,43.776884,239.18,239.17,12.39869261]
[1732602976683,23.776884,239.18,239.17,12.39869261]
[1732602977123,23.776884,239.2,239.16,0.4959886]
[1732602977322,158.276884,239.2,239.16,0.4959886]
[1732602978643,162.457484,239.2,239.16,0.4959886]
[1732602980827,158.276884,239.2,239.16,0.4959886]
[1732602981029,158.276884,239.2,239.17,12.39869261]
[1732602981229,20.0,239.2,239.19,12.39869261]
[1732602981438,43.776884,239.2,239.19,12.39869261]
[1732602983018,134.5,239.26,239.19,12.39869261]
[1732602983232,4.1795,239.27,239.22,12.39869261]
[1732602983818,4.1795,239.27,239.2,12.39869261]
[1732602984242,20.0,239.25,239.2,12.39869261]
[1732602984444,23.776884,239.24,239.2,12.39869261]
[1732602985524,23.776884,239.24,239.22,12.39869261]
[1732602988024,23.776884,239.24,239.2,12.39869261]
[1732602989942,23.776884,239.24,239.22,12.39869261]
[1732602991143,23.776884,239.27,239.22,12.39869261]
[1732602991348,134.5,239.28,239.24,12.39869261]
[1732602991555,4.1789,239.3,239.26,12.39869261]
[1732602992146,4.1786,239.31,239.26,12.39869261]
[1732602992529,23.776884,239.3,239.26,12.39869261]
[1732602992745,20.0,239.27,239.21,27.76969261]
[1732602993127,23.776884,239.26,239.21,27.76969261]
[1732602993651,23.776884,239.26,239.21,12.39869261]
[1732602994129,23.776884,239.22,239.19,12.39869261]
[1732602994449,23.776884,239.22,239.18,7.93841096]
[1732602994950,23.776884,239.22,239.2,7.93841096]
[1732602995529,134.5,239.25,239.2,7.93841096]
[1732602995739,134.5,239.25,239.24,7.93841096]
[1732602996037,4.1785,239.32,239.24,7.93841096]
[1732602996254,4.1785,239.32,239.2,31.75364384]
[1732602996255,138.6787,239.31,239.27,7.93841096]
[1732602997252,20.0,239.28,239.27,7.93841096]
[1732602998735,23.776884,239.3,239.27,7.93841096]
[1732602998935,23.776884,239.3,239.23,4.1799]
[1732602998936,23.776884,239.3,239.29,7.93841096]
[1732603000730,134.5,239.34,239.21,4.1804]
[1732603000731,23.776884,239.31,239.21,4.1804]
[1732603000930,23.776884,239.31,239.29,7.93841096]
[1732603002033,23.776884,239.31,239.27,7.93841096]
[1732603002447,4.1788,239.31,239.27,7.93841096]
[1732603002648,23.776884,239.3,239.27,7.93841096]
[1732603004147,27.955784,239.3,239.27,7.93841096]
[1732603004552,20.0,239.34,239.29,7.93841096]
[1732603005148,20.0,239.33,239.29,7.93841096]
[1732603005955,20.0,239.3,239.29,7.93841096]
[1732603006158,43.776884,239.3,239.29,7.93841096]
[1732603006933,23.776884,239.29,239.27,7.93841096]
[1732603009854,23.776884,239.29,239.21,15.371]
[1732603009855,27.955884,239.29,239.21,19.5514]
[1732603010153,27.955884,239.29,239.26,7.93841096]
[1732603010654,23.776884,239.29,239.26,7.93841096]
[1732603010854,27.955884,239.29,239.26,7.93841096]
[1732603011736,27.955884,239.29,239.21,15.371]
[1732603011939,162.455884,239.29,239.24,7.93841096]
[1732603012837,162.455884,239.29,239.26,7.93841096]
[1732603014195,162.455884,239.29,239.16,10.9490886]
[1732603014342,162.455884,239.29,239.25,7.93841096]
[1732603015155,158.276884,239.29,239.27,7.93841096]
[1732603020171,23.776884,239.29,239.27,7.93841096]
[1732603020469,23.776884,239.29,239.2,31.75364384]
[1732603020470,23.776884,239.29,239.26,7.93841096]
[1732603021572,23.776884,239.29,239.28,7.93841096]
[1732603021744,2.17883397,239.41,239.28,7.93841096]
[1732603021745,134.5,239.37,239.28,7.93841096]
[1732603021940,3.24,239.39,239.36,7.93841096]
[1732603022249,134.5,239.44,239.38,7.93841096]
[1732603022438,134.5,239.43,239.38,7.93841096]
[1732603023370,134.5,239.43,239.35,4.1779]
[1732603023371,4.1762,239.45,239.4,7.93841096]
[1732603024755,23.776884,239.42,239.4,7.93841096]
[1732603025963,134.5,239.45,239.4,7.93841096]
[1732603026163,134.5,239.45,239.44,7.93841096]
[1732603026340,146.61421096,239.48,239.36,4.1777]
[1732603026543,134.5,239.47,239.4,7.93841096]
[1732603026746,36.5492,239.46,239.22,16.5985]
[1732603026949,7.93841096,239.34,239.22,20.7786]
[1732603027141,23.776884,239.32,239.25,7.93841096]
[1732603027669,23.776884,239.28,239.22,16.5985]
[1732603028054,23.776884,239.28,239.23,7.93841096]
[1732603028254,23.776884,239.28,239.23,12.39902605]
[1732603032754,27.956184,239.28,239.23,12.39902605]
[1732603033063,23.776884,239.28,239.23,12.39902605]
[1732603034271,20.0,239.3,239.27,12.39902605]
[1732603034970,134.5,239.34,239.27,12.39902605]
[1732603034971,20.0,239.31,239.27,12.39902605]
[1732603035153,20.0,239.31,239.25,12.39902605]
[1732603035544,23.776884,239.3,239.25,12.39902605]
[1732603036762,23.776884,239.3,239.23,12.39902605]
[1732603037080,23.776884,239.28,239.23,12.39902605]
[1732603039073,27.956084,239.28,239.21,12.39902605]
[1732603039371,23.776884,239.26,239.23,12.39902605]
[1732603042378,23.776884,239.26,239.25,12.39902605]
[1732603042580,134.5,239.27,239.25,12.39902605]
[1732603044282,138.6783,239.33,239.25,12.39902605]
[1732603044584,4.1783,239.33,239.28,12.39902605]
[1732603044794,23.776884,239.31,239.28,12.39902605]
[1732603048286,23.776884,239.31,239.28,7.93177318]
[1732603050488,23.776884,239.31,239.3,7.93177318]
[1732603050679,134.5,239.37,239.3,7.93177318]
[1732603050862,138.6772,239.4,239.36,7.93177318]
[1732603051068,134.5,239.43,239.38,7.93177318]
[1732603051281,134.5,239.43,239.4,7.93177318]
[1732603051595,4.1763,239.45,239.4,7.93177318]
[1732603051772,134.5,239.44,239.4,7.93177318]
[1732603051969,134.5,239.46,239.42,7.93177318]
[1732603052287,10.72959473,239.47,239.42,7.93177318]
[1732603052586,6.55359473,239.47,239.44,7.93177318]
[1732603053294,134.5,239.48,239.44,7.93177318]
[1732603053669,4.1755,239.49,239.44,7.93177318]
[1732603054268,4.1755,239.49,239.45,12.37638617]
[1732603054464,138.6757,239.48,239.45,12.37638617]
[1732603054784,138.6757,239.48,239.43,12.37638617]
[1732603054968,23.776884,239.47,239.43,12.37638617]
[1732603055164,134.5,239.48,239.45,12.37638617]
[1732603055369,138.6751,239.52,239.47,12.37638617]
[1732603055587,138.6751,239.52,239.4,6.0732]
[1732603055588,4.1747,239.54,239.5,12.37638617]
[1732603055790,138.6747,239.54,239.5,12.37638617]
[1732603057781,23.776884,239.53,239.5,12.37638617]
[1732603057987,23.776884,239.49,239.46,12.37638617]
[1732603062177,134.5,239.53,239.48,12.37638617]
[1732603062495,27.951684,239.53,239.48,12.37638617]
[1732603063099,4.1748,239.53,239.48,12.37638617]
[1732603063582,134.5,239.54,239.5,12.37638617]
[1732603063781,4.1746,239.54,239.5,12.37638617]
[1732603063978,138.6744,239.56,239.52,12.37638617]
[1732603064208,7.414,239.58,239.54,12.37638617]
[1732603064577,4.174,239.58,239.54,12.37638617]
[1732603065474,23.776884,239.57,239.54,12.37638617]
[1732603066095,134.5,239.6,239.51,12.37638617]
[1732603066096,12.37638617,239.58,239.51,12.37638617]
[1732603066278,27.950584,239.59,239.51,12.37638617]
[1732603066484,20.0,239.56,239.51,12.37638617]
[1732603066779,23.776884,239.55,239.51,12.37638617]
[1732603068590,134.5,239.59,239.53,12.37638617]
[1732603068904,27.950884,239.58,239.53,12.37638617]
[1732603069206,23.776884,239.58,239.53,12.37638617]
[1732603071614,23.776884,239.57,239.53,12.37638617]
[1732603072882,23.776884,239.57,239.51,12.37638617]
[1732603073089,27.951084,239.57,239.51,12.37638617]
[1732603073291,27.951084,239.57,239.5,6.0732]
[1732603073585,27.951084,239.57,239.46,15.86]
[1732603073586,23.776884,239.55,239.47,12.37638617]
[1732603074808,23.776884,239.55,239.49,12.37638617]
[1732603075008,4.1746,239.54,239.49,12.37638617]
[1732603075209,20.0,239.54,239.51,12.37638617]
[1732603076311,20.0,239.54,239.49,7.91817565]
[1732603078113,20.0,239.54,239.47,4.1758]
[1732603078288,20.0,239.54,239.49,7.91817565]
[1732603080693,24.1746,239.54,239.49,7.91817565]
[1732603081493,20.0,239.54,239.49,7.91817565]
[1732603082892,20.0,239.54,239.46,15.86]
[1732603082893,23.776884,239.53,239.46,15.86]
[1732603083218,23.776884,239.53,239.48,7.91817565]